{"text_format":"1","workbook":"xlsx","n_sheets":4,"sheets":["Ansuchen","Controlling","EA","EA Controlling"],"not_rendered":{"charts":0,"images":11,"macros":1,"external_links":0,"defined_names":106,"comments":0,"pivot_tables":0},"unopened":[],"bounds":{"document_bytes":16777216,"sheet_cells":100000,"rows_first":2000,"rows_last":500,"rows_between":2000,"halvings":0,"cell_chars":16384,"cell_head_chars":4096},"cells_cut":0,"cells_raw":0,"read":"whole","date_system":"1900"}

{"sheet":"Ansuchen","index":0,"n_rows":117,"n_cols":29,"rows_kept":117,"cut":false,"hidden":false,"merged":[[75,7,75,10],[52,7,52,10],[27,6,27,11],[20,6,20,9],[53,7,53,10],[54,7,54,10],[55,7,55,10],[56,7,56,10],[43,7,43,11],[50,12,50,14],[46,7,46,10],[21,6,21,11],[22,6,22,11],[34,6,34,11],[23,6,23,11],[26,6,26,12],[24,6,24,11],[32,6,32,11],[33,6,33,11],[38,6,38,11],[39,6,39,11],[107,6,107,8],[96,1,96,14],[86,6,86,11],[87,6,87,11],[82,6,82,11],[102,10,102,14],[15,6,15,10],[81,6,81,11],[83,6,83,11],[35,6,35,11],[36,6,36,11],[42,7,42,11],[44,7,44,11],[45,7,45,11],[47,7,47,10],[48,7,48,10],[41,6,41,8],[71,7,71,10],[72,7,72,10],[73,7,73,10],[77,7,77,10],[74,7,74,10],[63,12,63,13],[56,2,56,3],[70,7,70,10],[62,10,64,11],[58,7,58,10],[68,7,68,10],[69,7,69,10],[115,10,115,14],[62,5,62,6],[63,5,63,6],[56,4,56,5],[115,1,115,4],[102,6,102,7],[115,6,115,7],[97,1,97,10],[90,1,95,15],[107,10,107,14],[109,2,110,14],[88,6,88,11],[84,6,84,11],[85,6,85,11],[102,1,102,4],[66,12,66,14]]}
[null,null,null,null,null,null,null,null,null,null,null,null,null,null,null,null,null,null,null,null,"Burgenländischen",null,null,"Bundesgewässer",null,"§ 5. (1)",null,"Vorläufige Bewertung/Risikogebiete","Planungen im Rahmen des Hochwasserrisikomanagments (HWRL)"]
[null,null,null,null,null,null,null,null,null,null,null,null,null,null,null,null,null,null,null,null,"Kärntner",null,null,"Interessentengewässer",null,"§ 5. (2)",null,"Gefahren- und Risikoanalyse","Gewässerentwicklungs - u. Risikomanagementkonzept (GE-RM)"]
[null,null,null,null,null,null,null,null,null,"Logo Land",null,null,null,null,null,null,null,null,null,null,"Niederösterreichischen",null,null,null,null,"§ 5. und § 6.",null,"Risikomanagementplanung/Evaluierung","Ereignisdokumentation"]
[null,null,null,null,null,null,null,null,null,null,null,null,null,null,null,null,null,null,null,null,"Oberösterreichischen",null,null,"Gemeinde",null,"§ 6. (1)",null,"Vorstudie","Ereignisanalyse"]
[null,null,null,null,null,null,null,null,null,null,null,null,null,null,null,null,null,null,null,null,"Salzburger",null,null,"Genossenschaft",null,"§ 6. (2)",null,"Bestandsaufnahme","Abflussuntersuchung"]
[null,null,null,null,null,null,null,null,null,null,null,null,null,null,null,null,null,null,null,null,"Steiermärkischen",null,null,"Interessent",null,"§ 8. (1)",null,"Maßnahmenkonzept","Gefahrenzonenplan lt. Wasserrecht"]
["Finanzierungsansuchen",null,null,null,null,null,null,null,null,null,null,null,null,null,null,null,null,null,null,null,"Tiroler",null,null,"Land",null,"§ 8. (2)",null,"Ereignisdokumentation","Generelles Projekt"]
["Stammdaten",null,null,null,null,null,null,null,null,null,null,null,null,null,null,null,null,null,null,null,"Vorarlberger",null,null,"Republik Österreich",null,"§ 25. (1)",null,"Vermessung","Vorstudie"]
[null,null,null,null,null,null,null,null,null,null,null,null,null,null,null,null,null,null,null,null,"Wiener",null,null,"Wasserverband",null,"§ 25. (2)",null,"Abflussuntersuchung (Ereignismodellierung)","Detailprojekt"]
["An die",null,null,null,null,null,null,null,null,null,null,null,null,null,null,null,null,null,null,null,null,null,null,null,null,"§ 25. (3)",null,"Abflussuntersuchung","Schutzmaßnahmen"]
["Kommunalkredit Public Consulting GmbH",null,null,null,null,null,null,null,null,null,null,null,null,null,null,null,null,null,null,null,null,null,null,"BMN M28",null,"§ 25. (4)",null,"Gefahrenzonenplanung","Sofortmaßnahme"]
["Türkenstraße 9",null,null,null,null,null,null,null,null,null,null,null,null,null,null,null,null,null,null,null,"Projektliste ab 1 Mio. Euro",null,null,"BMN M31",null,"§ 25. (7)",null,"Maßnahmenplanung","Instandhaltungsmaßnahmen"]
["1090 Wien",null,null,null,null,null,null,null,null,null,null,null,null,null,null,null,null,null,null,null,"Projektliste bis 1 Mio. Euro",null,null,"BMN M34",null,"§ 26. (1)",null,"Vorsorge","Gewässerpflegeplan/-konzept"]
[null,null,null,null,null,null,null,null,null,null,null,null,null,null,null,null,null,null,null,null,"Projektliste SFM",null,null,"Lambert",null,"§ 26. (2)",null,"Ersatzmaßnahme","Schutzwasserwirtschaftliches Sonderprojekt"]
[null,null,null,null,null,null,null,null,null,null,null,null,null,null,null,null,null,null,null,null,"Sammelverzeichnis",null,null,"GK M28",null,"§ 26. (3)",null,"Linearmaßnahme"]
["im Wege des Amtes der",null,null,null,null,null,null,null,null,null,null,"  Landesregierung",null,null,null,null,null,null,null,null,"Sammelverzeichnis SFM",null,null,"GK M31",null,"§ 28. (2)",null,"HW Rückhaltemaßnahme"]
[null,null,null,null,null,null,null,null,null,null,null,null,null,null,null,null,null,null,null,null,null,null,null,"GK M34",null,"§ 28. (2) Z1",null,"Kombinierte Maßnahme (Linear u. HW-Rückhalt)"]
[1,"Angaben zum Projekt",null,null,null,null,null,null,null,null,null,null,null,null,null,null,null,null,null,null,null,null,null,"UTM 32N",null,"§ 28. (2) Z2",null,"Gewässerökologische Maßnahmen"]
[null,null,null,null,null,null,null,null,null,null,null,null,null,null,null,null,null,null,null,null,null,null,null,"UTM 33N",null,"§ 28. (2) Z3",null,"Gewässerpflegemaßnahmen"]
[null,null,"EDV-Kennzahl",null,null,null,null,null,null,null,null,null,null,null,null,null,null,null,null,null,null,null,null,"WGS84",null,null,null,"Sonstige Schutzmaßnahmen"]
[null,null,"HW-OID",null,null,null,null,null,null,null,null,null,null,null,null,null,null,null,null,null,null,null,null,"Web Mercator",null,"ja",null,"Feststoffentnahme"]
[null,null,"Gewässername",null,null,null,null,null,null,null,null,null,null,null,null,null,null,null,null,null,null,null,null,null,null,"nein",null,"Instandsetzung"]
[null,null,"Bezeichnung",null,null,null,null,null,null,null,null,null,null,null,null,null,null,null,null,null,null,null,null,null,null,null,null,"Sonstige Sofortmaßnahme"]
[null,null,"Kurzbeschreibung",null,null,null,null,null,null,null,null,null,null,null,null,null,null,null,null,null,null,null,null,null,null,null,null,"Sonstige Instandhaltungsmaßnahmen"]
[null,null,"Gewässerart"]
[]
[null,null,"Vorhabenstyp",null,null,null,null,null,null,null,null,null,null,null,1]
[null,null,"Vorhabensinhalte"]
[]
[null,null,"Baubeginn (geplant)"]
[null,null,"Bauende (geplant)"]
[]
[null,null,"Bauträger"]
[null,null,"Erhaltungsverpflichteter"]
[null,null,"Finanzierung WBFG"]
[null,null,"Antrag mittels"]
[null,null,"Ereignis-ID in HW-FDB"]
[]
[null,null,"Gemeindekennzahl/en"]
[null,null,"APSFR-Nummer/n"]
[]
[null,null,"Projektionssystem"]
[null,null,"Koordinaten",null,null,"von","[Rechtswert]"]
[null,null,null,null,null,null,"[Hochwert]"]
[null,null,null,null,null,"bis","[Rechtswert]"]
[null,null,null,null,null,null,"[Hochwert]"]
[null,null,"Gewässer",null,null,"Route","[Kurz-RID]",null,null,null,null,"GGN-Version"]
[null,null,null,null,null,"von","[km]"]
[null,null,null,null,null,"bis","[km]"]
[]
[2,"Finanzierungsplan",null,null,null,null,null,null,null,null,null,null,"Finanzierungsanteil"]
[]
[null,null,null,null,null,null,"Bund",null,null,null,null,"EUR",null,null,"[%]"]
[null,null,null,null,null,null,"Land",null,null,null,null,"EUR",null,null,"[%]"]
[null,null,null,null,null,null,"Interessent",null,null,null,null,"EUR",null,null,"[%]"]
[null,null,null,null,null,null,"EU-Mittel",null,null,null,null,"EUR",null,null,1]
[null,null,"Name",null,null,null,"Sonderbeitrag",null,null,null,null,"EUR"]
[]
[null,null,null,null,null,null,"Summe",{"$f":"SUM(H53:K58)","v":0},null,null,null,"EUR","Summe",{"$f":"SUM(N53:N55)","v":0},"[%]"]
[]
[3,"Interessent und weitere kostenbeteiligte Interessenten",null,null,null,null,null,null,null,null,null,null,null,null,1]
[]
[null,null,null,null,"Name",null,null,null,null,null,"Der Interessent ist für die gegenständliche Maßnahme vorsteuerabzugsberechtigt."]
[null,null,null,null,"Beitrag [EUR]",null,null,null,{"$f":"F64","v":0},null,null,null,"nein",null,null,null,null,{"$f":"SUM(H63:H66)","v":0}]
[null,null,null,null,null,"Anteil [%]",{"$f":"IF($H$55>0,(F64/$H$55),\"\")","v":""},{"$f":"G65","v":""},null,null,null,null,null,null,null,null,null,{"$f":"H55-SUM(I63:I66)","v":0}]
[]
[4,"Aufteilung Bundesmittel (geplant)"]
[]
[null,null,null,null,null,"Jahr",2024,null,null,null,null,"EUR"]
[null,null,null,null,null,null,{"$f":"IF(G69>0,G69+1,\"\")","v":2025},null,null,null,null,"EUR"]
[null,null,null,null,null,null,{"$f":"IF(G69>0,G69+2,\"\")","v":2026},null,null,null,null,"EUR"]
[null,null,null,null,null,null,{"$f":"IF(G69>0,G69+3,\"\")","v":2027},null,null,null,null,"EUR"]
[null,null,null,null,null,null,{"$f":"IF(G69>0,G69+4,\"\")","v":2028},null,null,null,null,"EUR"]
[null,null,null,null,null,null,{"$f":"IF(G69>0,G69+5,\"\")","v":2029},null,null,null,null,"EUR"]
[null,null,null,null,null,null,{"$f":"IF(G69>0,G69+6,\"\")","v":2030},null,null,null,null,"EUR"]
[null,null,null,null,null,null,{"$f":"IF(G69>0,G69+7,\"\")","v":2031},null,null,null,null,"EUR"]
[]
[null,null,null,null,null,null,"Summe",{"$f":"SUM(H69:K76)","v":0},null,null,null,"EUR"]
[]
[5,"Finanzierungswerber",null,null,null,null,null,null,null,null,null,null,null,null,1]
[]
[null,null,"Name"]
[null,null,"Rechtsform"]
[null,null,"Ort"]
[null,null,"Postleitzahl"]
[null,null,"Straße/Nummer"]
[null,null,"Telefonnummer"]
[null,null,"E-Mail"]
[null,null,"Ansprechperson / Durchwahl"]
[]
[null,"Der unterzeichnende Finanzierungswerber verpflichtet sich zur Einhaltung der Bestimmungen des WBFG, der jeweils gültigen Technischen Richtlinien für den Wasserbau (TRL-WB) und Durchführungsbestimmungen (DFB) sowie der Bedingungen im Finanzierungsvertrag und bestätigt die Richtigkeit der für die Finanzierung maßgebenden Daten (Finanzierungsansuchen, sämtliche Projektunterlagen). Weiters bestätigt der Finanzierungswerber, dass er über die für die Durchführung der Maßnahme erforderlichen Bewilligungen (insbesondere die wasserrechtliche und naturschutzrechtliche) verfügt."]
[]
[]
[]
[]
[]
[null,"Der Finanzierungswerber stimmt der Veröffentlichung seines Projekts sowie der Weitergabe seiner Daten zu statistischen Zwecken gemäß allgemeinen Vertragsbedingungen nach Zustandekommen eines Finanzierungsvertrags zu."]
[null,"Informationen zum Datenschutz: www.umweltfoerderung.at/datenschutz"]
[]
[]
["Finanzierungswerber"]
[]
[]
[null,"Ort",null,null,null,null,"Datum",null,null,null,"Rechtsverbindliche Fertigung"]
[]
["Wasserbau-Landesdienststelle"]
[]
[null,null,"SachbearbeiterIn Land"]
[]
[null,null,"Das Finanzierungsansuchen wurde gemäß den Bestimmungen des WBFG, der TRL-WB und den Durchführungsbestimmungen zur TRL-WB (DFB) geprüft und"]
[]
[]
[null,null,null,"  positiv begutachtet."]
[]
[]
[]
[null,"Ort",null,null,null,null,"Datum",null,null,null,"Rechtsverbindliche Fertigung"]

{"sheet":"Controlling","index":1,"n_rows":45,"n_cols":12,"rows_kept":45,"cut":false,"hidden":false,"merged":[[42,1,43,15],[44,1,45,15],[14,12,14,14],[17,12,17,14],[20,12,20,14],[23,12,23,14],[26,12,26,14],[29,12,29,14],[11,5,11,6],[12,5,12,6],[32,12,32,14],[35,12,35,14],[38,12,38,14]]}
[]
[]
[]
[]
[]
[]
[null,"Finanzierungsansuchen"]
[null,"Controllingdaten"]
[]
[]
[]
[null,null,"EDV-Kennzahl",null,null,{"$f":"Ansuchen!G20","v":0}]
[null,null,"HW-OID",null,null,{"$f":"Ansuchen!G21","v":0}]
[]
[null,null,"Bearbeitungslänge der relevanten Fließgewässer bei Planungen",null,null,null,null,null,null,null,null,"[km]"]
[null,null,null,"(nur bei GZP, Vorstudie, GE-RM, Generelles Projekt erforderlich)"]
[]
[null,null,"geschützte Bewohner",null,null,null,null,null,null,null,null,"[Stk.]"]
[null,null,null,"(Haupt-, Nebenwohnsitz, Beschäftigte, direkt Betroffene)"]
[]
[null,null,"geschützte Objekte",null,null,null,null,null,null,null,null,"[Stk.]"]
[null,null,null,"(Wohn- und Nicht-Wohngebäude)"]
[]
[null,null,"geschaffenes Retentionsvolumen",null,null,null,null,null,null,null,null,"[m³]"]
[null,null,null,"(durch technische Maßnahmen, z.B. Rückhaltebecken)"]
[]
[null,null,"gesicherte Gewässer- oder Retentionsflächen",null,null,null,null,null,null,null,null,"[ha]"]
[null,null,null,"(Grundbeschaffung durch Ankauf bzw. Dienstbarkeit)"]
[]
[null,null,"geschaffene neue Gewässerfläche",null,null,null,null,null,null,null,null,"[ha]"]
[null,null,null,"(durch Aufweitung)"]
[]
[null,null,"geschaffener linearer Hochwasserschutz",null,null,null,null,null,null,null,null,"[km]"]
[null,null,null,"(Länge der Maßnahme, z.B. Hochwasserschutzdamm)"]
[]
[null,null,"durchgängig gemachte Querbauwerke, z.B. Sohlstufen, Rampen od. Schwellen",null,null,null,null,null,null,null,null,"[Stk.]"]
[null,null,null,"(Fisch- und Organismendurchgängigkeit) "]
[]
[null,null,"Nutzen-Kosten-Verhältnis",null,null,null,null,null,null,null,null,"[-]"]
[null,null,null,"(aus der Kosten-Nutzen-Untersuchung, ohne Wertsteigerungen) "]
[]
[null,"Hinweise:"]
[null,"Die Anzahl der geschützten Bewohner entspricht der Summe der Angaben für \"direkte Betroffene\" und \"betroffene Beschäftigte\" beim Bemessungsereignis (z.B. HQ100) in der Kosten-Nutzen-Untersuchung / Formblatt Bevölkerung, Beschäftigte."]
[]
[null,"Die Anzahl der geschützten Objekte entspricht der Summe der Angaben für \"Wohngebäude\" und \"Nicht-Wohngebäude\" beim Bemessungsereignis (z.B. HQ100) in der Kosten-Nutzen-Untersuchung / Formblatt Flächennutzungen."]

{"sheet":"EA","index":2,"n_rows":137,"n_cols":29,"rows_kept":137,"cut":false,"hidden":false,"merged":[[127,3,129,14],[131,3,134,14],[136,3,137,14],[103,6,103,8],[103,10,103,14],[105,2,106,14],[109,1,109,4],[109,6,109,7],[109,10,109,14],[116,3,117,14],[119,3,120,14],[122,3,123,14],[98,6,98,7],[78,6,78,11],[79,6,79,11],[80,6,80,11],[81,6,81,11],[82,6,82,11],[83,6,83,11],[98,10,98,14],[85,1,90,15],[91,1,93,15],[98,1,98,4],[53,7,53,10],[54,7,54,10],[55,7,55,10],[58,7,58,10],[62,10,64,11],[46,7,46,10],[47,7,47,10],[48,7,48,10],[50,12,50,14],[52,7,52,10],[36,6,36,11],[41,6,41,8],[42,7,42,11],[43,7,43,11],[44,7,44,11],[38,6,38,11],[39,6,39,11],[56,2,56,3],[56,4,56,5],[56,7,56,10],[24,6,24,11],[15,6,15,10],[20,6,20,9],[21,6,21,11],[22,6,22,11],[23,6,23,11],[45,7,45,11],[26,6,26,12],[27,6,27,11],[32,6,32,11],[33,6,33,11],[34,6,34,11],[35,6,35,11],[62,5,62,6],[63,5,63,6],[63,12,63,13],[72,7,72,10],[76,6,76,11],[77,6,77,11],[66,12,66,14],[68,7,68,10],[69,7,69,10],[70,7,70,10]]}
[null,null,null,null,null,null,null,null,null,null,null,null,null,null,null,null,null,null,null,null,"Burgenländischen",null,null,"Bundesgewässer",null,"§ 5. (1)",null,"Vorläufige Bewertung/Risikogebiete","Planungen im Rahmen des Hochwasserrisikomanagments (HWRL)"]
[null,null,null,null,null,null,null,null,null,null,null,null,null,null,null,null,null,null,null,null,"Kärntner",null,null,"Interessentengewässer",null,"§ 5. (2)",null,"Gefahren- und Risikoanalyse","Gewässerentwicklungs - u. Risikomanagementkonzept (GE-RM)"]
[null,null,null,null,null,null,null,null,null,null,null,null,null,null,null,null,null,null,null,null,"Niederösterreichischen",null,null,null,null,"§ 5. und § 6.",null,"Risikomanagementplanung/Evaluierung","Ereignisdokumentation"]
[null,null,null,null,null,null,null,null,null,null,null,null,null,null,null,null,null,null,null,null,"Oberösterreichischen",null,null,"Gemeinde",null,"§ 6. (1)",null,"Vorstudie","Ereignisanalyse"]
[null,null,null,null,null,null,null,null,null,null,null,null,null,null,null,null,null,null,null,null,"Salzburger",null,null,"Genossenschaft",null,"§ 6. (2)",null,"Bestandsaufnahme","Abflussuntersuchung"]
[null,null,null,null,null,null,null,null,null,null,null,null,null,null,null,null,null,null,null,null,"Steiermärkischen",null,null,"Interessent",null,"§ 8. (1)",null,"Maßnahmenkonzept","Gefahrenzonenplan lt. Wasserrecht"]
["Finanzierung - Endabrechnung",null,null,null,null,null,null,null,null,null,null,null,null,null,null,null,null,null,null,null,"Tiroler",null,null,"Land",null,"§ 8. (2)",null,"Ereignisdokumentation","Generelles Projekt"]
["Stammdaten",null,null,null,null,null,null,null,null,null,null,null,null,null,null,null,null,null,null,null,"Vorarlberger",null,null,"Republik Österreich",null,"§ 25. (1)",null,"Vermessung","Vorstudie"]
[null,null,null,null,null,null,null,null,null,null,null,null,null,null,null,null,null,null,null,null,"Wiener",null,null,"Wasserverband",null,"§ 25. (2)",null,"Abflussuntersuchung (Ereignismodellierung)","Detailprojekt"]
["An die",null,null,null,null,null,null,null,null,null,null,null,null,null,null,null,null,null,null,null,null,null,null,null,null,"§ 25. (3)",null,"Abflussuntersuchung","Schutzmaßnahmen"]
["Kommunalkredit Public Consulting GmbH",null,null,null,null,null,null,null,null,null,null,null,null,null,null,null,null,null,null,null,null,null,null,"BMN M28",null,"§ 25. (4)",null,"Gefahrenzonenplanung","Sofortmaßnahme"]
["Türkenstraße 9",null,null,null,null,null,null,null,null,null,null,null,null,null,null,null,null,null,null,null,"Projektliste ab 1 Mio. Euro",null,null,"BMN M31",null,"§ 25. (7)",null,"Maßnahmenplanung","Instandhaltungsmaßnahmen"]
["1090 Wien",null,null,null,null,null,null,null,null,null,null,null,null,null,null,null,null,null,null,null,"Projektliste bis 1 Mio. Euro",null,null,"BMN M34",null,"§ 26. (1)",null,"Vorsorge","Gewässerpflegeplan/-konzept"]
[null,null,null,null,null,null,null,null,null,null,null,null,null,null,null,null,null,null,null,null,"Projektliste SFM",null,null,"Lambert",null,"§ 26. (2)",null,"Ersatzmaßnahme","Schutzwasserwirtschaftliches Sonderprojekt"]
[null,null,null,null,null,null,null,null,null,null,null,null,null,null,null,null,null,null,null,null,"Sammelverzeichnis",null,null,"GK M28",null,"§ 26. (3)",null,"Linearmaßnahme"]
["im Wege des Amtes der",null,null,null,null,null,null,null,null,null,null,"  Landesregierung",null,null,null,null,null,null,null,null,"Sammelverzeichnis SFM",null,null,"GK M31",null,"§ 28. (2)",null,"HW Rückhaltemaßnahme"]
[null,null,null,null,null,null,null,null,null,null,null,null,null,null,null,null,null,null,null,null,null,null,null,"GK M34",null,"§ 28. (2) Z1",null,"Kombinierte Maßnahme (Linear u. HW-Rückhalt)"]
[1,"Angaben zum Projekt",null,null,null,null,null,null,null,null,null,null,null,null,null,null,null,null,null,null,null,null,null,"UTM 32N",null,"§ 28. (2) Z2",null,"Gewässerökologische Maßnahmen"]
[null,null,null,null,null,null,null,null,null,null,null,null,null,null,null,null,null,null,null,null,null,null,null,"UTM 33N",null,"§ 28. (2) Z3",null,"Gewässerpflegemaßnahmen"]
[null,null,"EDV-Kennzahl",null,null,null,null,null,null,null,null,null,null,null,null,null,null,null,null,null,null,null,null,"WGS84",null,null,null,"Sonstige Schutzmaßnahmen"]
[null,null,"HW-OID",null,null,null,null,null,null,null,null,null,null,null,null,null,null,null,null,null,null,null,null,"Web Mercator",null,"ja",null,"Feststoffentnahme"]
[null,null,"Gewässername",null,null,null,null,null,null,null,null,null,null,null,null,null,null,null,null,null,null,null,null,null,null,"nein",null,"Instandsetzung"]
[null,null,"Bezeichnung",null,null,null,null,null,null,null,null,null,null,null,null,null,null,null,null,null,null,null,null,null,null,null,null,"Sonstige Sofortmaßnahme"]
[null,null,"Kurzbeschreibung",null,null,null,null,null,null,null,null,null,null,null,null,null,null,null,null,null,null,null,null,null,null,null,null,"Sonstige Instandhaltungsmaßnahmen"]
[null,null,"Gewässerart"]
[]
[null,null,"Vorhabenstyp",null,null,null,null,null,null,null,null,null,null,null,1]
[null,null,"Vorhabensinhalte"]
[]
[null,null,"Baubeginn (tatsächlich)"]
[null,null,"Bauende (tatsächlich)"]
[]
[null,null,"Bauträger"]
[null,null,"Erhaltungsverpflichteter"]
[null,null,"Finanzierung WBFG"]
[null,null,"Antrag mittels"]
[null,null,"Ereignis-ID in HW-FDB"]
[]
[null,null,"Gemeindekennzahl/en"]
[null,null,"APSFR-Nummer/n"]
[]
[null,null,"Projektionssystem"]
[null,null,"Koordinaten",null,null,"von","[Rechtswert]"]
[null,null,null,null,null,null,"[Hochwert]"]
[null,null,null,null,null,"bis","[Rechtswert]"]
[null,null,null,null,null,null,"[Hochwert]"]
[null,null,"Gewässer",null,null,"Route","[Kurz-RID]",null,null,null,null,"GGN-Version"]
[null,null,null,null,null,"von","[km]"]
[null,null,null,null,null,"bis","[km]"]
[]
[2,"Projektausgaben",null,null,null,null,null,null,null,null,null,null,"Finanzierungsanteil"]
[]
[null,null,null,null,null,null,"Bund",null,null,null,null,"EUR",null,null,"[%]"]
[null,null,null,null,null,null,"Land",null,null,null,null,"EUR",null,null,"[%]"]
[null,null,null,null,null,null,"Interessent",null,null,null,null,"EUR",null,null,"[%]"]
[null,null,null,null,null,null,"EU-Mittel",null,null,null,null,"EUR",null,null,1]
[null,null,"Name",null,null,null,"Sonderbeitrag",null,null,null,null,"EUR"]
[]
[null,null,null,null,null,null,"Summe",{"$f":"SUM(H53:K58)","v":0},null,null,null,"EUR","Summe",{"$f":"SUM(N53:N55)","v":0},"[%]"]
[]
[3,"Interessent und weitere kostenbeteiligte Interessenten",null,null,null,null,null,null,null,null,null,null,null,null,1]
[]
[null,null,null,null,"Name",null,null,null,null,null,"Der Interessent ist für die gegenständliche Maßnahme vorsteuerabzugsberechtigt."]
[null,null,null,null,"Beitrag [EUR]",null,null,null,{"$f":"F64","v":0},null,null,null,"nein",null,null,null,null,{"$f":"SUM(H63:H66)","v":0}]
[null,null,null,null,null,"Anteil [%]",{"$f":"IF($H$55>0,(F64/$H$55),\"\")","v":""},{"$f":"G65","v":""},null,null,null,null,null,null,null,null,null,{"$f":"H55-SUM(I63:I66)","v":0}]
[]
[4,"Kostenaufteilung*",null,null,null,null,null,null,null,null,null,null,"Nutzungsdauer**"]
[]
[null,null,null,null,null,null,"Planung und Nebenkosten",null,null,null,null,"EUR","80 J.",null,"[%]"]
[null,null,null,null,null,null,"Grundbeschaffung (Ablösen, Entschädigungen)",null,null,null,null,"EUR","40 J.",null,"[%]"]
[null,null,null,null,null,null,"Bau (Eigenregie- und Fremdleistungen)",null,null,null,null,"EUR","25 J.",null,"[%]",null,null,{"$f":"100-N73","v":{"$error":"#VALUE!"}}]
[]
[null,null,null,null,null,null,"Summe",{"$f":"SUM(H69:K71)","v":0},null,null,null,"EUR","Summe",{"$f":"IF(H71<>0,SUM(N69:N71),\"\")","v":""},"[%]",null,null,{"$f":"$H$59-H73","v":0}]
[]
[5,"Finanzierungsnehmer",null,null,null,null,null,null,null,null,null,null,null,null,1]
[]
[null,null,"Name"]
[null,null,"Rechtsform"]
[null,null,"Ort"]
[null,null,"Postleitzahl"]
[null,null,"Straße/Nummer"]
[null,null,"Telefonnummer"]
[null,null,"E-Mail"]
[null,null,"Ansprechperson / Durchwahl"]
[]
[null,"Der unterzeichnende Finanzierungsnehmer bestätigt, verpflichtet sich zur Einhaltung der Bestimmungen des WBFG, der jeweils gültigen Technischen Richtlinien für die Bundeswasserbauverwaltung (RIWA-T) und Durchführungsbestimmungen (DFB) sowie der Bedingungen im Finanzierungsvertrag und bestätigt die Richtigkeit der für die Finanzierung maßgebenden Daten (Finanzierungsansuchen, sämtliche Projektunterlagen). Weiters bestätigt der Finanzierungsnehmer, dass er über die für die Durchführung der Maßnahme erforderlichen Bewilligungen (insbesonderer die wasserrechtliche und naturschutzrechtliche) verfügt hat."]
[]
[]
[]
[]
[]
[null,"Der Finanzierungsnehmer bestätigt, dass die Maßnahme gemäß den Bestimmungen des WBFG, der jeweils gültigen Technischen Richtlinien für den Wasserbau (TRL-WB) und Durchführungsbestimmungen (DFB) sowie der Bedingungen im Finanzierungsvertrag positiv abgeschlossen wurde, und dass die datenschutzrechtlichen Bestimmungen eingehalten wurden."]
[]
[]
[]
[]
["Finanzierungsnehmer"]
[]
[]
[null,"Ort",null,null,null,null,"Datum",null,null,null,"Rechtsverbindliche Fertigung"]
[]
["Wasserbau-Landesdienststelle"]
[]
[null,null,"SachbearbeiterIn Land"]
[]
[null,null,"Die Wasserbau-Landesdienststelle bestätigt, dass der Saldenausgleich erfolgt ist und die technisch und finanziell einwandfreie Durchführung der Maßnahme festgestellt wurde."]
[]
[]
[]
[]
[null,"Ort",null,null,null,null,"Datum",null,null,null,"Rechtsverbindliche Fertigung"]
[]
[]
[]
["*Die erbrachten Leistungen bzw. angefallenen Kosten sind auf die folgenden Kategorien aufzuteilen:"]
[null,null,"- Planung und Nebenkosten:"]
[null,null,null,"u.a. auch externe örtliche Bauaufsicht, Vermessung, chemische und geotechnische Voruntersuchungen, Leistungen für Ausschreibungen, Baustellenkoordinator, Prüfungen"]
[]
[null,null,"- Grundbeschaffung (Ablösen, Entschädigungen): "]
[null,null,null,"u.a. auch Verkehrswertgutachten, Grundbucheintragungsgebühr, Notariatsgebühren, Flur- und Fischereientschädigungen"]
[]
[null,null,"- Bau (Eigenregie- und Fremdleistungen):"]
[null,null,null,"u.a. auch Personalkosten der Eigenregiepartien, Gerätemiete, Strom und Treibstoff, archäologische Grabungen, Kampfmittelerkundung"]
[]
[]
["**Die Baukosten der errichteten Schutzbauten bzw. Anlagen sind prozentuell auf die folgenden Nutzungsdauern aufzuteilen:"]
[null,null,"- Nutzungsdauer 80 Jahre:"]
[null,null,null,"Massivbauliche Maßnahmen (Hochwasser-, Lawinen- und Steinschlagschutzdämme (aus Erdmaterialien); Lawinenschutzbauwerke aus Stahl; Schutzmauern; Rückhaltebecken und Wildbachsperren inkl. Stahlrechenkonstruktion; Einlauf- und Entnahmebauwerke, Künstliche Gerinne, Rohrdurchlässe)"]
[]
[]
[null,null,"- Nutzungsdauer 40 Jahre:"]
[null,null,null,"Ingenieurbiologische Verbauten (Erosionsschutztechnische Sicherung von Bauwerken und Landschaftselementen (z.B. Böschungen oder Ufer) durch den Einsatz von Pflanzen und pflanzlichem Material); Holzbauten (Schutzbauwerke aus Holz); Stahlwasserbauten (Bewegliche Verschlusskonstruktionen aus Metall für absperrbare Öffnungen; Mobile Hochwasserschutzelemente)"]
[]
[]
[]
[null,null,"- Nutzungsdauer 25 Jahre:"]
[null,null,null,"Elektromaschinelle Ausrüstung (Elektrische und maschinelle Ausrüstung und Steuerung); Steinschlagschutznetze (inkl. Verankerung)"]

{"sheet":"EA Controlling","index":3,"n_rows":45,"n_cols":12,"rows_kept":45,"cut":false,"hidden":false,"merged":[[23,12,23,14],[11,5,11,6],[12,5,12,6],[14,12,14,14],[17,12,17,14],[20,12,20,14],[44,1,45,15],[26,12,26,14],[29,12,29,14],[32,12,32,14],[35,12,35,14],[38,12,38,14],[42,1,43,15]]}
[]
[]
[]
[]
[]
[]
[null,"Finanzierung - Endabrechnung"]
[null,"Controllingdaten"]
[]
[]
[]
[null,null,"EDV-Kennzahl",null,null,{"$f":"EA!G20","v":0}]
[null,null,"HW-OID",null,null,{"$f":"EA!G21","v":0}]
[]
[null,null,"Bearbeitungslänge der relevanten Fließgewässer bei Planungen",null,null,null,null,null,null,null,null,"[km]"]
[null,null,null,"(nur bei GZP, Vorstudie, GE-RM, Generelles Projekt erforderlich)"]
[]
[null,null,"geschützte Bewohner",null,null,null,null,null,null,null,null,"[Stk.]"]
[null,null,null,"(Haupt-, Nebenwohnsitz, Beschäftigte, direkt Betroffene)"]
[]
[null,null,"geschützte Objekte",null,null,null,null,null,null,null,null,"[Stk.]"]
[null,null,null,"(Wohn- und Nicht-Wohngebäude)"]
[]
[null,null,"geschaffenes Retentionsvolumen",null,null,null,null,null,null,null,null,"[m³]"]
[null,null,null,"(durch technische Maßnahmen, z.B. Rückhaltebecken)"]
[]
[null,null,"gesicherte Gewässer- oder Retentionsflächen",null,null,null,null,null,null,null,null,"[ha]"]
[null,null,null,"(Grundbeschaffung durch Ankauf bzw. Dienstbarkeit)"]
[]
[null,null,"geschaffene neue Gewässerfläche",null,null,null,null,null,null,null,null,"[ha]"]
[null,null,null,"(durch Aufweitung)"]
[]
[null,null,"geschaffener linearer Hochwasserschutz",null,null,null,null,null,null,null,null,"[km]"]
[null,null,null,"(Länge der Maßnahme, z.B. Hochwasserschutzdamm)"]
[]
[null,null,"durchgängig gemachte Querbauwerke, z.B. Sohlstufen, Rampen od. Schwellen",null,null,null,null,null,null,null,null,"[Stk.]"]
[null,null,null,"(Fisch- und Organismendurchgängigkeit) "]
[]
[null,null,"Nutzen-Kosten-Verhältnis",null,null,null,null,null,null,null,null,"[-]"]
[null,null,null,"(aus der Kosten-Nutzen-Untersuchung, ohne Wertsteigerungen) "]
[]
[null,"Hinweise:"]
[null,"Die Anzahl der geschützten Bewohner entspricht der Summe der Angaben für \"direkte Betroffene\" und \"betroffene Beschäftigte\" beim Bemessungsereignis (z.B. HQ100) in der Kosten-Nutzen-Untersuchung / Formblatt Bevölkerung, Beschäftigte."]
[]
[null,"Die Anzahl der geschützten Objekte entspricht der Summe der Angaben für \"Wohngebäude\" und \"Nicht-Wohngebäude\" beim Bemessungsereignis (z.B. HQ100) in der Kosten-Nutzen-Untersuchung / Formblatt Flächennutzungen."]